[Event "Titled Tuesday Blitz June 28 Early 2022"]
[White "Korchmar, Vasiliy"]
[Black "Ivanov, Mike"]
[WhiteFideId "24131750"]
[BlackFideId "2613158"]
[WhiteElo "2370"]
[BlackElo "2182"]
[Result "1-0"]
[Round "04"]
[TimeControl "180+1"]
[Date "2022.06.28"]
[WhiteClock "0:00:04"]
[BlackClock "0:00:01"]

1. e4 {[%clk 0:03:00]}  g6 {[%clk 0:02:56]} 2. d4 {[%clk 0:03:00]}  Bg7 {[%clk 0:02:57]} 3. c3 {[%clk 0:03:00]}  c6 {[%clk 0:02:58]} 4. Bd3 {[%clk 0:02:58]}  Nh6 {[%clk 0:02:41]} 5. Nf3 {[%clk 0:02:55]}  O-O {[%clk 0:02:40]} 6. h3 {[%clk 0:02:53]}  d5 {[%clk 0:02:35]} 7. e5 {[%clk 0:02:51]}  f6 {[%clk 0:02:35]} 8. O-O {[%clk 0:02:43]}  fxe5 {[%clk 0:02:19]} 9. Nxe5 {[%clk 0:02:41]}  Nf7 {[%clk 0:02:18]} 10. Nf3 {[%clk 0:02:28]}  e5 {[%clk 0:02:13]} 11. dxe5 {[%clk 0:02:26]}  Nxe5 {[%clk 0:02:13]} 12. Nxe5 {[%clk 0:02:26]}  Bxe5 {[%clk 0:02:14]} 13. Bh6 {[%clk 0:02:26]}  Bg7 {[%clk 0:02:13]} 14. Bxg7 {[%clk 0:02:26]}  Kxg7 {[%clk 0:02:14]} 15. Nd2 {[%clk 0:02:25]}  Bf5 {[%clk 0:02:11]} 16. Nf3 {[%clk 0:02:24]}  Bxd3 {[%clk 0:02:06]} 17. Qxd3 {[%clk 0:02:25]}  Qf6 {[%clk 0:01:59]} 18. Rae1 {[%clk 0:02:18]}  Nd7 {[%clk 0:01:59]} 19. Re3 {[%clk 0:02:07]}  Rae8 {[%clk 0:01:55]} 20. Rfe1 {[%clk 0:02:07]}  Rxe3 {[%clk 0:01:55]} 21. Rxe3 {[%clk 0:02:08]}  Nc5 {[%clk 0:01:30]} 22. Qd4 {[%clk 0:01:42]}  Qxd4 {[%clk 0:01:21]} 23. Nxd4 {[%clk 0:01:43]}  Kf7 {[%clk 0:01:05]} 24. g4 {[%clk 0:01:08]}  Re8 {[%clk 0:01:03]} 25. Rf3+ {[%clk 0:01:01]}  Kg7 {[%clk 0:01:00]} 26. Kf1 {[%clk 0:00:55]}  Ne4 {[%clk 0:00:53]} 27. Kg2 {[%clk 0:00:49]}  Nd2 {[%clk 0:00:46]} 28. Rd3 {[%clk 0:00:46]}  Nc4 {[%clk 0:00:46]} 29. b3 {[%clk 0:00:45]}  Nd6 {[%clk 0:00:43]} 30. f3 {[%clk 0:00:30]}  Kf6 {[%clk 0:00:36]} 31. Kg3 {[%clk 0:00:28]}  Re1 {[%clk 0:00:30]} 32. Rd2 {[%clk 0:00:20]}  a6 {[%clk 0:00:18]} 33. h4 {[%clk 0:00:16]}  Nb5 {[%clk 0:00:17]} 34. Ne2 {[%clk 0:00:10]}  Ra1 {[%clk 0:00:11]} 35. Kf4 {[%clk 0:00:05]}  h6 {[%clk 0:00:10]} 36. g5+ {[%clk 0:00:04]}  hxg5+ {[%clk 0:00:11]} 37. hxg5+ {[%clk 0:00:05]}  Ke6 {[%clk 0:00:11]} 38. c4 {[%clk 0:00:05]}  dxc4 {[%clk 0:00:09]} 39. bxc4 {[%clk 0:00:06]}  Nd6 {[%clk 0:00:08]} 40. Nd4+ {[%clk 0:00:06]}  Ke7 {[%clk 0:00:06]} 41. c5 {[%clk 0:00:03]}  Nb5 {[%clk 0:00:06]} 42. Re2+ {[%clk 0:00:04]}  Kf7 {[%clk 0:00:05]} 43. Ne6 {[%clk 0:00:04]}  Rc1 {[%clk 0:00:03]} 44. Nd8+ {[%clk 0:00:04]}  Kf8 {[%clk 0:00:03]} 45. Nxb7 {[%clk 0:00:05]}  Nc3 {[%clk 0:00:02]} 46. Re6 {[%clk 0:00:03]}  Nd5+ {[%clk 0:00:01]} 47. Ke5 {[%clk 0:00:03]}  Re1+ {[%clk 0:00:01]} 48. Kd6 {[%clk 0:00:04]} 1-0


[Site "https://www.chess.com"]

[Event "Titled Tuesday Blitz June 28 Early 2022"]
[White "Kucuksari, Kaan"]
[Black "Wartiovaara, Oliver"]
[WhiteFideId "6380166"]
[BlackFideId "513024"]
[WhiteElo "2305"]
[BlackElo "1971"]
[Result "1-0"]
[Round "04"]
[TimeControl "180+1"]
[Date "2022.06.28"]
[WhiteClock "0:00:15"]
[BlackClock "0:00:18"]

1. d4 {[%clk 0:02:53]}  Nf6 {[%clk 0:02:58]} 2. c4 {[%clk 0:02:54]}  e6 {[%clk 0:02:57]} 3. g3 {[%clk 0:02:55]}  d5 {[%clk 0:02:56]} 4. Nf3 {[%clk 0:02:55]}  c6 {[%clk 0:02:51]} 5. Qc2 {[%clk 0:02:53]}  Bb4+ {[%clk 0:02:47]} 6. Nbd2 {[%clk 0:02:51]}  O-O {[%clk 0:02:42]} 7. Bg2 {[%clk 0:02:51]}  b6 {[%clk 0:02:41]} 8. O-O {[%clk 0:02:51]}  Bb7 {[%clk 0:02:37]} 9. e4 {[%clk 0:02:48]}  dxe4 {[%clk 0:02:30]} 10. Nxe4 {[%clk 0:02:47]}  Nxe4 {[%clk 0:02:31]} 11. Qxe4 {[%clk 0:02:47]}  Nd7 {[%clk 0:02:20]} 12. a3 {[%clk 0:02:31]}  Be7 {[%clk 0:02:17]} 13. b4 {[%clk 0:02:32]}  Qc8 {[%clk 0:02:10]} 14. c5 {[%clk 0:02:30]}  a5 {[%clk 0:02:07]} 15. Be3 {[%clk 0:02:27]}  Ba6 {[%clk 0:01:47]} 16. Rfc1 {[%clk 0:02:24]}  Nf6 {[%clk 0:01:44]} 17. Qh4 {[%clk 0:02:15]}  axb4 {[%clk 0:01:41]} 18. axb4 {[%clk 0:02:09]}  bxc5 {[%clk 0:01:37]} 19. dxc5 {[%clk 0:02:06]}  Nd5 {[%clk 0:01:31]} 20. Bg5 {[%clk 0:02:01]}  Bxg5 {[%clk 0:01:28]} 21. Nxg5 {[%clk 0:02:02]}  h6 {[%clk 0:01:27]} 22. Ne4 {[%clk 0:02:00]}  Bd3 {[%clk 0:01:19]} 23. Nd6 {[%clk 0:01:58]}  Qc7 {[%clk 0:01:12]} 24. Qd4 {[%clk 0:01:49]}  Bg6 {[%clk 0:01:10]} 25. b5 {[%clk 0:01:42]}  Rxa1 {[%clk 0:01:05]} 26. Rxa1 {[%clk 0:01:40]}  cxb5 {[%clk 0:01:05]} 27. Nxb5 {[%clk 0:01:35]}  Qc6 {[%clk 0:01:02]} 28. Nc3 {[%clk 0:01:30]}  Rc8 {[%clk 0:01:00]} 29. Nxd5 {[%clk 0:01:26]}  exd5 {[%clk 0:01:01]} 30. Rc1 {[%clk 0:00:57]}  Be4 {[%clk 0:01:00]} 31. Bf1 {[%clk 0:00:53]}  Qe6 {[%clk 0:00:47]} 32. Qe3 {[%clk 0:00:48]}  Qf6 {[%clk 0:00:45]} 33. Be2 {[%clk 0:00:29]}  Qb2 {[%clk 0:00:38]} 34. Bg4 {[%clk 0:00:24]}  Rc6 {[%clk 0:00:34]} 35. Bd7 {[%clk 0:00:23]}  Rc7 {[%clk 0:00:31]} 36. c6 {[%clk 0:00:23]}  Qe5 {[%clk 0:00:20]} 37. Re1 {[%clk 0:00:18]}  Qd6 {[%clk 0:00:19]} 38. Qd4 {[%clk 0:00:16]}  Rxd7 {[%clk 0:00:18]} 39. cxd7 {[%clk 0:00:15]} 1-0


[Site "https://www.chess.com"]

[Event "Titled Tuesday Blitz June 28 Early 2022"]
[White "Kupervaser, Erez"]
[Black "Volkov, Maksim"]
[WhiteFideId "2814587"]
[BlackFideId "54123070"]
[WhiteElo "1832"]
[BlackElo "2155"]
[Result "0-1"]
[Round "04"]
[TimeControl "180+1"]
[Date "2022.06.28"]
[WhiteClock "0:00:07"]
[BlackClock "0:00:03"]

1. e4 {[%clk 0:03:00]}  c5 {[%clk 0:02:56]} 2. Nf3 {[%clk 0:03:01]}  d6 {[%clk 0:02:56]} 3. Bb5+ {[%clk 0:03:01]}  Nd7 {[%clk 0:02:56]} 4. O-O {[%clk 0:03:01]}  a6 {[%clk 0:02:55]} 5. Bd3 {[%clk 0:03:01]}  g6 {[%clk 0:02:55]} 6. c3 {[%clk 0:03:01]}  Bg7 {[%clk 0:02:55]} 7. Bc2 {[%clk 0:03:01]}  e6 {[%clk 0:02:52]} 8. d4 {[%clk 0:03:02]}  cxd4 {[%clk 0:02:51]} 9. cxd4 {[%clk 0:03:03]}  Ne7 {[%clk 0:02:48]} 10. Nc3 {[%clk 0:02:55]}  O-O {[%clk 0:02:48]} 11. Bf4 {[%clk 0:02:56]}  d5 {[%clk 0:02:44]} 12. exd5 {[%clk 0:02:50]}  Nxd5 {[%clk 0:02:42]} 13. Nxd5 {[%clk 0:02:50]}  exd5 {[%clk 0:02:43]} 14. Bb3 {[%clk 0:02:48]}  Nf6 {[%clk 0:02:39]} 15. Be5 {[%clk 0:02:48]}  Be6 {[%clk 0:02:34]} 16. Re1 {[%clk 0:02:45]}  h6 {[%clk 0:02:33]} 17. Rc1 {[%clk 0:02:30]}  Rc8 {[%clk 0:02:31]} 18. Rxc8 {[%clk 0:02:19]}  Qxc8 {[%clk 0:02:31]} 19. Qc1 {[%clk 0:02:20]}  Qd7 {[%clk 0:02:26]} 20. Bxf6 {[%clk 0:02:09]}  Bxf6 {[%clk 0:02:27]} 21. Qxh6 {[%clk 0:02:08]}  Bg7 {[%clk 0:02:15]} 22. Qh4 {[%clk 0:02:06]}  Rc8 {[%clk 0:02:00]} 23. h3 {[%clk 0:02:06]}  Bf5 {[%clk 0:01:58]} 24. Ne5 {[%clk 0:01:42]}  Qd6 {[%clk 0:01:50]} 25. Qf4 {[%clk 0:01:36]}  Bf8 {[%clk 0:01:32]} 26. g4 {[%clk 0:01:28]}  Be6 {[%clk 0:01:32]} 27. Nxg6 {[%clk 0:01:12]}  Qb4 {[%clk 0:01:32]} 28. Qe5 {[%clk 0:00:58]}  Bg7 {[%clk 0:01:24]} 29. Qe2 {[%clk 0:00:50]}  Re8 {[%clk 0:01:16]} 30. Ne5 {[%clk 0:00:46]}  Qxd4 {[%clk 0:01:15]} 31. Nf3 {[%clk 0:00:41]}  Qc5 {[%clk 0:01:02]} 32. Qd3 {[%clk 0:00:35]}  Bxb2 {[%clk 0:00:54]} 33. Ng5 {[%clk 0:00:34]}  Bg7 {[%clk 0:00:49]} 34. Bxd5 {[%clk 0:00:25]}  Rd8 {[%clk 0:00:19]} 35. Qh7+ {[%clk 0:00:24]}  Kf8 {[%clk 0:00:19]} 36. Bxe6 {[%clk 0:00:25]}  Qxg5 {[%clk 0:00:17]} 37. Qf5 {[%clk 0:00:17]}  Qxf5 {[%clk 0:00:15]} 38. Bxf5 {[%clk 0:00:18]}  Rd2 {[%clk 0:00:14]} 39. Bc8 {[%clk 0:00:09]}  Bd4 {[%clk 0:00:11]} 40. Rf1 {[%clk 0:00:09]}  Rb2 {[%clk 0:00:11]} 41. Kg2 {[%clk 0:00:10]}  a5 {[%clk 0:00:11]} 42. Kf3 {[%clk 0:00:10]}  b5 {[%clk 0:00:12]} 43. Rd1 {[%clk 0:00:10]}  Bxf2 {[%clk 0:00:07]} 44. Ba6 {[%clk 0:00:08]}  b4 {[%clk 0:00:07]} 45. Be2 {[%clk 0:00:06]}  Bc5 {[%clk 0:00:06]} 46. Bc4 {[%clk 0:00:07]}  Rc2 {[%clk 0:00:05]} 47. Bb3 {[%clk 0:00:07]}  Rc3+ {[%clk 0:00:04]} 48. Kf4 {[%clk 0:00:07]}  Rxh3 {[%clk 0:00:04]} 49. Kf5 {[%clk 0:00:07]}  Rf3+ {[%clk 0:00:04]} 50. Ke4 {[%clk 0:00:07]}  Rf2 {[%clk 0:00:03]} 51. Rd6 {[%clk 0:00:07]}  Bxd6 {[%clk 0:00:03]} 0-1


[Site "https://www.chess.com"]

[Event "Titled Tuesday Blitz June 28 Early 2022"]
[White "Li, Zhuoling"]
[Black "Ajay Krishna, S"]
[WhiteFideId "8605629"]
[BlackFideId "5096430"]
[WhiteElo "2304"]
[BlackElo "2247"]
[Result "0-1"]
[Round "04"]
[TimeControl "180+1"]
[Date "2022.06.28"]
[WhiteClock "0:00:10"]
[BlackClock "0:00:11"]

1. e4 {[%clk 0:03:00]}  e5 {[%clk 0:02:58]} 2. Nf3 {[%clk 0:03:00]}  Nc6 {[%clk 0:02:58]} 3. Bb5 {[%clk 0:03:00]}  a6 {[%clk 0:02:57]} 4. Ba4 {[%clk 0:03:01]}  Nf6 {[%clk 0:02:57]} 5. O-O {[%clk 0:03:00]}  b5 {[%clk 0:02:50]} 6. Bb3 {[%clk 0:03:00]}  Bc5 {[%clk 0:02:48]} 7. d3 {[%clk 0:02:56]}  d6 {[%clk 0:02:45]} 8. c3 {[%clk 0:02:55]}  O-O {[%clk 0:02:43]} 9. h3 {[%clk 0:02:54]}  h6 {[%clk 0:02:39]} 10. Re1 {[%clk 0:02:52]}  Bb6 {[%clk 0:02:35]} 11. Nbd2 {[%clk 0:02:51]}  Be6 {[%clk 0:02:33]} 12. Nf1 {[%clk 0:02:49]}  Re8 {[%clk 0:02:26]} 13. Be3 {[%clk 0:02:48]}  d5 {[%clk 0:02:16]} 14. Bxb6 {[%clk 0:02:44]}  cxb6 {[%clk 0:02:17]} 15. exd5 {[%clk 0:02:40]}  Bxd5 {[%clk 0:02:17]} 16. Bxd5 {[%clk 0:02:28]}  Nxd5 {[%clk 0:02:15]} 17. Qc2 {[%clk 0:02:09]}  Nf4 {[%clk 0:02:05]} 18. Rad1 {[%clk 0:02:08]}  Qf6 {[%clk 0:02:02]} 19. N1h2 {[%clk 0:02:04]}  Qg6 {[%clk 0:01:58]} 20. Nh4 {[%clk 0:01:35]}  Nxh3+ {[%clk 0:01:52]} 21. Kh1 {[%clk 0:01:11]}  Qh5 {[%clk 0:01:50]} 22. gxh3 {[%clk 0:01:10]}  Qxh4 {[%clk 0:01:50]} 23. Re3 {[%clk 0:01:10]}  Rad8 {[%clk 0:01:40]} 24. Rg1 {[%clk 0:01:08]}  Ne7 {[%clk 0:01:25]} 25. Rg4 {[%clk 0:00:59]}  Qf6 {[%clk 0:01:22]} 26. Rg2 {[%clk 0:00:50]}  Ng6 {[%clk 0:01:18]} 27. Ng4 {[%clk 0:00:46]}  Qc6 {[%clk 0:01:18]} 28. Kg1 {[%clk 0:00:34]}  Nf4 {[%clk 0:00:42]} 29. Rgg3 {[%clk 0:00:34]}  h5 {[%clk 0:00:40]} 30. Nh2 {[%clk 0:00:31]}  h4 {[%clk 0:00:33]} 31. Rg4 {[%clk 0:00:29]}  f5 {[%clk 0:00:25]} 32. Rg5 {[%clk 0:00:27]}  Qf6 {[%clk 0:00:20]} 33. Rg2 {[%clk 0:00:11]}  Nxg2 {[%clk 0:00:20]} 34. Kxg2 {[%clk 0:00:10]}  Qg6+ {[%clk 0:00:20]} 35. Kf1 {[%clk 0:00:10]}  f4 {[%clk 0:00:19]} 36. Rf3 {[%clk 0:00:09]}  Qe6 {[%clk 0:00:18]} 37. Ng4 {[%clk 0:00:09]}  e4 {[%clk 0:00:18]} 38. dxe4 {[%clk 0:00:09]}  Qxe4 {[%clk 0:00:18]} 39. Qxe4 {[%clk 0:00:08]}  Rxe4 {[%clk 0:00:19]} 40. Kg2 {[%clk 0:00:08]}  Rd2 {[%clk 0:00:19]} 41. b4 {[%clk 0:00:08]}  Kf7 {[%clk 0:00:18]} 42. Nh2 {[%clk 0:00:07]}  Ke6 {[%clk 0:00:17]} 43. Nf1 {[%clk 0:00:07]}  Rd8 {[%clk 0:00:15]} 44. Nh2 {[%clk 0:00:07]}  Rd1 {[%clk 0:00:12]} 45. Nf1 {[%clk 0:00:07]}  Kd5 {[%clk 0:00:12]} 46. Nh2 {[%clk 0:00:07]}  Kc4 {[%clk 0:00:12]} 47. Ng4 {[%clk 0:00:07]}  Rd3 {[%clk 0:00:11]} 48. Rxd3 {[%clk 0:00:06]}  Kxd3 {[%clk 0:00:11]} 49. Kf3 {[%clk 0:00:07]}  Re7 {[%clk 0:00:10]} 50. Nh2 {[%clk 0:00:07]}  g5 {[%clk 0:00:09]} 51. Nf1 {[%clk 0:00:06]}  Kxc3 {[%clk 0:00:09]} 52. Kg4 {[%clk 0:00:07]}  Re2 {[%clk 0:00:08]} 53. Kxg5 {[%clk 0:00:07]}  Rxf2 {[%clk 0:00:08]} 54. Kxh4 {[%clk 0:00:07]}  Rxf1 {[%clk 0:00:09]} 55. Kg4 {[%clk 0:00:08]}  Kd3 {[%clk 0:00:09]} 56. h4 {[%clk 0:00:09]}  Ke4 {[%clk 0:00:10]} 57. h5 {[%clk 0:00:09]}  f3 {[%clk 0:00:11]} 58. h6 {[%clk 0:00:10]}  Rg1+ {[%clk 0:00:11]} 0-1


[Site "https://www.chess.com"]

[Event "Titled Tuesday Blitz June 28 Early 2022"]
[White "Maiorov, Nikita"]
[Black "Melikhov, Evgeny V."]
[WhiteFideId "13501720"]
[BlackFideId "4122046"]
[WhiteElo "2417"]
[BlackElo "1904"]
[Result "1-0"]
[Round "04"]
[TimeControl "180+1"]
[Date "2022.06.28"]
[WhiteClock "0:00:58"]
[BlackClock "0:00:42"]

1. d4 {[%clk 0:02:55]}  Nf6 {[%clk 0:02:57]} 2. c4 {[%clk 0:02:54]}  e6 {[%clk 0:02:58]} 3. Nf3 {[%clk 0:02:49]}  d5 {[%clk 0:02:56]} 4. Nc3 {[%clk 0:02:47]}  Bb4 {[%clk 0:02:56]} 5. cxd5 {[%clk 0:02:45]}  exd5 {[%clk 0:02:56]} 6. Bg5 {[%clk 0:02:45]}  h6 {[%clk 0:02:56]} 7. Bxf6 {[%clk 0:02:44]}  Qxf6 {[%clk 0:02:56]} 8. Qa4+ {[%clk 0:02:44]}  Nc6 {[%clk 0:02:56]} 9. e3 {[%clk 0:02:45]}  O-O {[%clk 0:02:56]} 10. Be2 {[%clk 0:02:45]}  Be6 {[%clk 0:02:52]} 11. O-O {[%clk 0:02:45]}  a6 {[%clk 0:02:49]} 12. Rfc1 {[%clk 0:02:44]}  Bd6 {[%clk 0:02:47]} 13. Qd1 {[%clk 0:02:42]}  Rad8 {[%clk 0:02:41]} 14. a3 {[%clk 0:02:40]}  Ne7 {[%clk 0:02:40]} 15. Na4 {[%clk 0:02:39]}  g5 {[%clk 0:02:36]} 16. Nc5 {[%clk 0:02:38]}  Bc8 {[%clk 0:02:36]} 17. g3 {[%clk 0:02:37]}  Ng6 {[%clk 0:02:31]} 18. Nd3 {[%clk 0:02:33]}  h5 {[%clk 0:02:21]} 19. Nd2 {[%clk 0:02:21]}  h4 {[%clk 0:02:10]} 20. Bg4 {[%clk 0:02:20]}  Qe7 {[%clk 0:01:45]} 21. Bxc8 {[%clk 0:02:18]}  Rxc8 {[%clk 0:01:45]} 22. Qf3 {[%clk 0:01:38]}  c6 {[%clk 0:01:20]} 23. e4 {[%clk 0:01:34]}  dxe4 {[%clk 0:01:07]} 24. Nxe4 {[%clk 0:01:34]}  f5 {[%clk 0:01:06]} 25. Qh5 {[%clk 0:01:15]}  Kg7 {[%clk 0:00:47]} 26. Nxd6 {[%clk 0:01:04]}  Qxd6 {[%clk 0:00:47]} 27. Qxg5 {[%clk 0:01:05]}  Qxd4 {[%clk 0:00:47]} 28. Nf4 {[%clk 0:01:00]}  Qf6 {[%clk 0:00:43]} 29. Nh5+ {[%clk 0:00:59]}  Kf7 {[%clk 0:00:42]} 30. Qxf6+ {[%clk 0:00:58]} 1-0


[Site "https://www.chess.com"]

[Event "Titled Tuesday Blitz June 28 Early 2022"]
[White "Manukian, Artak"]
[Black "Vifleemskaia, Svetlana"]
[WhiteFideId "13301373"]
[BlackFideId "4129490"]
[WhiteElo "2466"]
[BlackElo "1929"]
[Result "0-1"]
[Round "04"]
[TimeControl "180+1"]
[Date "2022.06.28"]
[WhiteClock "0:00:01"]
[BlackClock "0:00:21"]

1. e4 {[%clk 0:03:00]}  e5 {[%clk 0:02:58]} 2. Nf3 {[%clk 0:03:00]}  Nc6 {[%clk 0:02:57]} 3. d4 {[%clk 0:02:56]}  exd4 {[%clk 0:02:57]} 4. Nxd4 {[%clk 0:02:55]}  Bc5 {[%clk 0:02:57]} 5. Nxc6 {[%clk 0:02:52]}  Qf6 {[%clk 0:02:56]} 6. Qf3 {[%clk 0:02:49]}  bxc6 {[%clk 0:02:55]} 7. Bc4 {[%clk 0:02:39]}  d6 {[%clk 0:02:52]} 8. Nc3 {[%clk 0:02:16]}  Qxf3 {[%clk 0:02:48]} 9. gxf3 {[%clk 0:02:09]}  Ne7 {[%clk 0:02:49]} 10. h4 {[%clk 0:01:25]}  O-O {[%clk 0:02:42]} 11. h5 {[%clk 0:01:25]}  h6 {[%clk 0:02:41]} 12. Ke2 {[%clk 0:01:22]}  Be6 {[%clk 0:02:36]} 13. Bd3 {[%clk 0:01:18]}  f5 {[%clk 0:02:35]} 14. Be3 {[%clk 0:01:17]}  Bb6 {[%clk 0:02:29]} 15. Rhg1 {[%clk 0:01:15]}  Kh8 {[%clk 0:02:09]} 16. Rg2 {[%clk 0:01:02]}  d5 {[%clk 0:01:54]} 17. Bxb6 {[%clk 0:00:56]}  axb6 {[%clk 0:01:53]} 18. Rag1 {[%clk 0:00:57]}  Rf7 {[%clk 0:01:51]} 19. a3 {[%clk 0:00:52]}  Raf8 {[%clk 0:01:16]} 20. e5 {[%clk 0:00:49]}  c5 {[%clk 0:01:09]} 21. Kd2 {[%clk 0:00:37]}  c6 {[%clk 0:01:02]} 22. f4 {[%clk 0:00:35]}  d4 {[%clk 0:01:02]} 23. Nd1 {[%clk 0:00:31]}  c4 {[%clk 0:00:58]} 24. Bf1 {[%clk 0:00:30]}  Nd5 {[%clk 0:00:57]} 25. Rh2 {[%clk 0:00:24]}  Nxf4 {[%clk 0:00:54]} 26. Bg2 {[%clk 0:00:24]}  Bd5 {[%clk 0:00:53]} 27. Bxd5 {[%clk 0:00:22]}  cxd5 {[%clk 0:00:48]} 28. Rh4 {[%clk 0:00:21]}  Ne6 {[%clk 0:00:48]} 29. f4 {[%clk 0:00:20]}  b5 {[%clk 0:00:45]} 30. Rg6 {[%clk 0:00:20]}  Nc5 {[%clk 0:00:44]} 31. Nf2 {[%clk 0:00:16]}  Ne4+ {[%clk 0:00:43]} 32. Nxe4 {[%clk 0:00:16]}  fxe4 {[%clk 0:00:44]} 33. e6 {[%clk 0:00:16]}  Re7 {[%clk 0:00:40]} 34. Rhg4 {[%clk 0:00:13]}  Rf5 {[%clk 0:00:34]} 35. b4 {[%clk 0:00:09]}  Rxh5 {[%clk 0:00:33]} 36. a4 {[%clk 0:00:05]}  bxa4 {[%clk 0:00:31]} 37. b5 {[%clk 0:00:05]}  a3 {[%clk 0:00:30]} 38. Rg1 {[%clk 0:00:04]}  Rh2+ {[%clk 0:00:26]} 39. Kc1 {[%clk 0:00:04]}  d3 {[%clk 0:00:22]} 40. Kb1 {[%clk 0:00:01]}  d2 {[%clk 0:00:21]} 0-1


[Site "https://www.chess.com"]

[Event "Titled Tuesday Blitz June 28 Early 2022"]
[White "McCoy, Owen"]
[Black "Matveeva, Olga"]
[WhiteFideId "30924502"]
[BlackFideId "24107018"]
[WhiteElo "2535"]
[BlackElo "2052"]
[Result "1-0"]
[Round "04"]
[TimeControl "180+1"]
[Date "2022.06.28"]
[WhiteClock "0:00:02"]
[BlackClock "0:00:10"]

1. d4 {[%clk 0:03:00]}  Nf6 {[%clk 0:02:59]} 2. c4 {[%clk 0:02:59]}  e6 {[%clk 0:02:59]} 3. g3 {[%clk 0:02:58]}  Bb4+ {[%clk 0:02:57]} 4. Bd2 {[%clk 0:02:57]}  Qe7 {[%clk 0:02:56]} 5. Bg2 {[%clk 0:02:56]}  O-O {[%clk 0:02:54]} 6. Nc3 {[%clk 0:02:50]}  Nc6 {[%clk 0:02:51]} 7. a3 {[%clk 0:02:40]}  Bxc3 {[%clk 0:02:50]} 8. Bxc3 {[%clk 0:02:39]}  d6 {[%clk 0:02:49]} 9. Nf3 {[%clk 0:02:35]}  e5 {[%clk 0:02:48]} 10. d5 {[%clk 0:02:34]}  Nb8 {[%clk 0:02:46]} 11. Nd2 {[%clk 0:02:34]}  Nbd7 {[%clk 0:02:42]} 12. e4 {[%clk 0:02:26]}  a5 {[%clk 0:02:41]} 13. b3 {[%clk 0:02:25]}  Ne8 {[%clk 0:02:39]} 14. Nf1 {[%clk 0:02:18]}  f5 {[%clk 0:02:38]} 15. exf5 {[%clk 0:02:18]}  Rxf5 {[%clk 0:02:34]} 16. Ne3 {[%clk 0:02:18]}  Rf8 {[%clk 0:02:33]} 17. b4 {[%clk 0:02:08]}  axb4 {[%clk 0:02:30]} 18. axb4 {[%clk 0:02:08]}  Rxa1 {[%clk 0:02:30]} 19. Qxa1 {[%clk 0:02:05]}  Qg5 {[%clk 0:02:20]} 20. h4 {[%clk 0:01:57]}  Qg6 {[%clk 0:02:15]} 21. Qd1 {[%clk 0:01:45]}  Ndf6 {[%clk 0:02:00]} 22. h5 {[%clk 0:01:41]}  Qf7 {[%clk 0:01:50]} 23. Qe2 {[%clk 0:01:33]}  Ng4 {[%clk 0:01:32]} 24. Bd2 {[%clk 0:00:49]}  Nef6 {[%clk 0:01:22]} 25. Rh4 {[%clk 0:00:40]}  e4 {[%clk 0:01:07]} 26. c5 {[%clk 0:00:17]}  Ne5 {[%clk 0:01:03]} 27. Kf1 {[%clk 0:00:10]}  Nfg4 {[%clk 0:00:45]} 28. Kg1 {[%clk 0:00:06]}  Qxf2+ {[%clk 0:00:30]} 29. Qxf2 {[%clk 0:00:06]}  Rxf2 {[%clk 0:00:31]} 30. Nxg4 {[%clk 0:00:04]}  Nxg4 {[%clk 0:00:27]} 31. Bf4 {[%clk 0:00:02]}  Rb2 {[%clk 0:00:23]} 32. Bxe4 {[%clk 0:00:02]}  Rxb4 {[%clk 0:00:20]} 33. Bf3 {[%clk 0:00:02]}  Ne5 {[%clk 0:00:18]} 34. Bxe5 {[%clk 0:00:01]}  dxe5 {[%clk 0:00:19]} 35. Rxb4 {[%clk 0:00:01]}  e4 {[%clk 0:00:12]} 36. Bxe4 {[%clk 0:00:02]}  b5 {[%clk 0:00:10]} 37. Rxb5 {[%clk 0:00:02]} 1-0


[Site "https://www.chess.com"]

[Event "Titled Tuesday Blitz June 28 Early 2022"]
[White "Mekhane, Adam"]
[Black "Pulpan, Jakub"]
[WhiteFideId "36050601"]
[BlackFideId "302759"]
[WhiteElo "2002"]
[BlackElo "2495"]
[Result "0-1"]
[Round "04"]
[TimeControl "180+1"]
[Date "2022.06.28"]
[WhiteClock "0:00:36"]
[BlackClock "0:01:53"]

1. e4 {[%clk 0:03:00]}  e5 {[%clk 0:02:56]} 2. Nf3 {[%clk 0:03:00]}  Nc6 {[%clk 0:02:56]} 3. Bb5 {[%clk 0:02:58]}  Nf6 {[%clk 0:02:57]} 4. O-O {[%clk 0:02:54]}  Nxe4 {[%clk 0:02:57]} 5. d4 {[%clk 0:02:54]}  Nd6 {[%clk 0:02:53]} 6. dxe5 {[%clk 0:02:55]}  Nxb5 {[%clk 0:02:49]} 7. a4 {[%clk 0:02:55]}  Nxe5 {[%clk 0:02:47]} 8. Nxe5 {[%clk 0:02:28]}  Nd6 {[%clk 0:02:44]} 9. c4 {[%clk 0:02:23]}  Be7 {[%clk 0:02:37]} 10. b3 {[%clk 0:02:04]}  O-O {[%clk 0:02:35]} 11. Bb2 {[%clk 0:02:04]}  Bf6 {[%clk 0:02:35]} 12. Qd2 {[%clk 0:01:50]}  Ne4 {[%clk 0:02:34]} 13. Qc2 {[%clk 0:01:46]}  Nc5 {[%clk 0:02:15]} 14. Nd2 {[%clk 0:01:33]}  d6 {[%clk 0:02:14]} 15. Nef3 {[%clk 0:01:33]}  Bxb2 {[%clk 0:02:14]} 16. Qxb2 {[%clk 0:01:33]}  a5 {[%clk 0:02:13]} 17. Rfe1 {[%clk 0:01:28]}  Nd3 {[%clk 0:02:06]} 18. Qd4 {[%clk 0:01:23]}  Nxe1 {[%clk 0:02:06]} 19. Rxe1 {[%clk 0:01:24]}  Re8 {[%clk 0:02:07]} 20. Ne4 {[%clk 0:01:23]}  Bf5 {[%clk 0:02:03]} 21. Qd5 {[%clk 0:01:12]}  Bxe4 {[%clk 0:02:02]} 22. Rxe4 {[%clk 0:01:13]}  Rxe4 {[%clk 0:02:03]} 23. Qxe4 {[%clk 0:01:13]}  b6 {[%clk 0:02:03]} 24. Ng5 {[%clk 0:01:12]}  g6 {[%clk 0:02:03]} 25. Qd5 {[%clk 0:01:06]}  Qe8 {[%clk 0:02:02]} 26. h4 {[%clk 0:01:02]}  Qe1+ {[%clk 0:02:00]} 27. Kh2 {[%clk 0:01:02]}  Qe5+ {[%clk 0:02:01]} 28. f4 {[%clk 0:00:56]}  Qxf4+ {[%clk 0:01:58]} 29. g3 {[%clk 0:00:46]}  Qf2+ {[%clk 0:01:58]} 30. Kh3 {[%clk 0:00:40]}  Qf1+ {[%clk 0:01:56]} 31. Kh2 {[%clk 0:00:40]}  Re8 {[%clk 0:01:56]} 32. Ne4 {[%clk 0:00:38]}  Qe2+ {[%clk 0:01:53]} 33. Kh3 {[%clk 0:00:36]}  Qxe4 {[%clk 0:01:53]} 0-1


[Site "https://www.chess.com"]